Workbook

Sheet Food
F2: Calorie Chart | N2: Thermometer Readings
B3: Baking | K3: Oven Chart | N3: MEAT | O3: TEMP | P3: FRIED FOODS | Q3: TEMP | R3: TIME | S3: CANDY / FROSTINGS | U3: TEMP
B4: ITEM | C4: TEMP | D4: TIME (Minutes) | K4: Slow | L4: 250-325 | N4: Beef | P4: Croquettes | S4: Thread | U4: 230 - 234
B5: Yeast Breads | K5: mderate | L5: 325 - 375 | N5: rare | O5: 140 | P5: cooked | Q5: 375 - 385 | R5: 2 - 4 | S5: Soft Ball | U5: 234 - 238
B6: Yeast Bread | C6: 400 - 425 | D6: 40 - 45 | K6: mod - hot | L6: 375 - 400 | N6: medium | O6: 160 | P6: uncooked | Q6: 370 | R6: 5 - 6 | S6: Firm Ball | U6: 244 - 248
B7: Sweet Rolls | C7: 350 - 375 | D7: 15 - 25 | K7: hot | L7: 400 - 450 | N7: done | O7: 170 | P7: Doughnuts | Q7: 375 | R7: 2 - 3 | S7: Hard Ball | U7: 248 - 254
B8: Plain Rolls | C8: 400 - 450 | D8: 15 - 20 | K8: very hot | L8: 450 -500 | N8: Pork | O8: 185 | P8: Fritters | Q8: 365 - 375 | R8: 2 - 5 | S8: Very Hard Ball | U8: 254 - 260
B9: Quick Breads | N9: smoked | O9: 160 - 170 | P9: Fries | Q9: 370 | R9: 5 - 7 | S9: Light Crack | U9: 270 - 295
B10: Buscuits | C10: 450 | D10: 12 - 15 | N10: Lamb | O10: 175 - 180 | P10: Rings | Q10: 375 - 380 | R10: 2 - 3 | S10: Hard Crack | U10: 290 - 300
B11: Muffins | C11: 400 - 425 | D11: 20 - 25 | N11: Veal | O11: 170 | P11: Oysters | Q11: 375 | R11: 1 - 2
B12: Popovers | C12: 450 | D12: 20 | P12: Small fish | Q12: 375 - 385 | R12: 2 - 5
B13: then | C13: 350 | D13: 15 - 20
B14: Corn Bread | C14: 400 - 425 | D14: 20 - 30 | N14: Storing Perishables - Refrigeration | R14: Refrig 35 - 40 | S14: Freezer 0 deg.
B15: Nut Bread | C15: 350 | D15: 50 - 75 | N15: Type | O15: Item | P15: Time | S15: Time
B16: Gingerbread | C16: 350 | D16: 40 - 50 | N16: DAIRY | O16: Milk / cream | P16: 1 | Q16: week | R16: Breads | S16: Room temperature in breadbox or fridge and use within 5 - 7 days, 2 - 3 mo. In refrig.
B17: Cakes | O17: Cheese, spreads | P17: 1 - 2 | Q17: weeks
B18: Angel | C18: 325 | D18: 60 - 75 | O18: Cottage Cheese | P18: 3 - 5 | Q18: days
B19: Sponge | C19: 325 | D19: 60 - 75 | O19: Cream Cheese | P19: 2 | Q19: weeks | R19: Cereals | S19: Store at room temperature in tightly closed containers. Spices, flour and sugar is the same
B20: w/ Shortening | O20: Soft cheese food | P20: 2 | Q20: weeks
B21: Cup | C21: 350 - 375 | D21: 20 - 25 | O21: Hard Cheese | P21: 1 - 2 | Q21: months
B22: Layer | C22: 350 - 375 | D22: 25 - 35 | N22: EGGS | O22: in shell | P22: 1 | Q22: week | R22: Dry mixes | S22: Store at room temperature away from heat.
B23: Loaf | C23: 350 | D23: 50 - 60 | O23: yolks, whites | P23: 2 - 4 | Q23: days
B24: Sheet | C24: 375 - 400 | D24: 20 - 30 | N24: FRUITS | O24: Ripe apples | P24: 1 | Q24: months | R24: Dried Egg | S24: Store in refrigerator. Will keep about a year.
B25: Fruit | C25: 250 - 275 | D25: 2 - 4 hrs | O25: Bananas, Pears | P25: 3 - 5 | Q25: days
B26: Cookies | O26: Avacados | P26: 3 - 5 | Q26: days | R26: Butter, Fats | S26: Store in refrigerator and use within 2 weeks.
B27: Bars | C27: 350 | D27: 25 - 30 | O27: Berries, cherries | P27: 2 - 3 | Q27: days
B28: Drop | C28: 350 - 400 | D28: 10 - 15 | O28: Cranberries | P28: 1 | Q28: week | R28: Oils | S28: Cooking and salad oils, for long storage, keep in refrigerator
B29: Rolled | C29: 375 - 400 | D29: 8 - 12 | O29: Grapes | P29: 3 - 5 | Q29: days
B30: refrigerator | C30: 375 - 400 | D30: 6 - 10 | O30: Citrus fruits | P30: 2 | Q30: weeks | R30: Mayonnaise | S30: Salad dressings keep in refrigerator after opening
B31: Puddings | O31: Peaches, Nectarines | P31: 3 - 5 | Q31: days
B32: custards | C32: 325 | D32: 25 - 30 | O32: Plums, apricots | P32: 3 - 5 | Q32: days | R32: Shortening | S32: Lard and solid fats go rancid. Lard that is not stabelized should be refrigerated.
B33: Rice | C33: 350 | D33: 60 | O33: Pinapple, cut | P33: 2 - 3 | Q33: days
B34: Bread | C34: 350 | D34: 40 - 50 | N34: VEGGIES | O34: Asperagus | P34: 2 - 3 | Q34: days | R34: Melons | S34: Refrigerate after opening
B35: Pastry | O35: Broccoli / Sprouts | P35: 3 - 5 | Q35: days | R35: Canned Fruit Fruit Juices | S35: Cover and store in the refrigerator
B36: Shell | C36: 450 | D36: 12 - 15 | O36: Cabbage | P36: 1 - 2 | Q36: weeks
B37: Custard Pie | C37: 450 | D37: 10 | O37: Cauliflower, celery | P37: 1 | Q37: week | R37: Dried Fruits | S37: Cool place for 6 months
B38: then | C38: 325 | D38: 25 | O38: Snap beans | P38: 1 | Q38: week | R38: Jellies, Jams | S38: Cover and store in the refrigerator
B39: Two Crust Pie | O39: Carrots, beets | P39: 2 | Q39: weeks | R39: Fish | S39: Store in the refrigerator, Use in 1 - 2 days.
B40: cooked filling | C40: 425 - 450 | D40: 25 - 35 | O40: parsnips, radishes | P40: 2 | Q40: weeks | R40: Stuffings | S40: Store seperately from bird - use in 1 -2 days.
B41: Uncooked fill | C41: 450 | D41: 10 | O41: Peas, lima beans | P41: 3 - 5 | Q41: days
B42: then | C42: 350 | D42: 30 - 40 | O42: Lettuce, leaf salads | P42: 1 | Q42: week | R42: Dry milk | S42: Store in tightly sealed container. Nonfat will keep on cupboard shelf several months, whole should be stored in the refrigerator, tightly covered after opening.
B43: Meringue | C43: 350 | D43: 12 - 15 | O43: Onions, green | P43: 3 - 5 | Q43: days
O44: Peppers, cucumbers | P44: 1 | Q44: week
B45: Roasting | O45: Rhubarb | P45: 3 - 5 | Q45: days
B46: ITEM | C46: TEMP | D46: TIME (Minutes) | O46: Spinach, Kale,greens | P46: 3 - 5 | Q46: days
B47: Beef | D47: Pound | O47: Squash, summer | P47: 3 - 5 | Q47: days | R47: Evap milk | S47: Store at room temp. After opening refrigerate in tightly covered container.
B48: rare | C48: 300 - 350 | D48: 18-20 | O48: Corn, sweet | P48: 1 | Q48: short as poss
B49: med | C49: 300 - 350 | D49: 22 - 25 | O49: tomatoes | P49: 1 | Q49: week | R49: Potatoes | S49: Store in dark, dry place at 45 - 50 deg. Will keep several months. If stored at room temp, use in 1 week.
B50: done | C50: 300 - 350 | D50: 27 - 30 | O50: COOKED Vegies | P50: 4 - 5 | Q50: days
B51: Lamb | C51: 300 - 350 | D51: 30 - 35 | N51: MEATS
B52: Pork | N52: Fresh | O52: Chops, Lamb, Pork | P52: 3 - 5 | Q52: days | S52: 8 - 12 | T52: Months
B53: Fresh | C53: 300 - 350 | D53: 35 - 40 | O53: Ground and stew | P53: 1 - 2 | Q53: days | S53: 2 - 3 | T53: Months
B54: Smoked | C54: 300 - 350 | D54: 20 - 30 | O54: Roast, beef & lamb | P54: 3 - 5 | Q54: days | S54: 8 - 12 | T54: Months
B55: Veal | C55: 300 | D55: 30 | O55: Roasts, pork & veal | P55: 3 - 5 | Q55: days | S55: 4 - 8 | T55: Months
B56: All Rolled | C56: 300 - 350 | D56: Add 10 - 15 min / # | O56: Sausage, pork | P56: 1 - 2 | Q56: days | S56: 1 - 2 | T56: Months
B57: Chicken | C57: 325 - 350 | D57: 22 - 30 | O57: Variety meats | P57: 1 - 2 | Q57: days | S57: 3 - 4 | T57: Months
B58: Duck | C58: 325 - 350 | D58: 20 - 25 | N58: Processed | O58: Bacon | P58: 7 | Q58: days | S58: 1 | T58: Months
B59: Goose | C59: 325 - 350 | D59: 25 - 30 | O59: Frankfurters | P59: 7 | Q59: days | S59: 1/2 | T59: Month
B60: Turkey | C60: 250 - 325 | D60: 15 - 25 | O60: Ham, whole | P60: 7 | Q60: days | S60: 1 - 2 | T60: months
B61: Broiling | O61: Ham, half | P61: 3 - 5 | Q61: days | S61: 1 - 2 | T61: months
C62: Rare | D62: Med | E62: Done | O62: Ham, sliced | P62: 3 | Q62: days | S62: 1 - 2 | T62: months
B63: Beef Steaks | O63: Lunch Meats | P63: 3 - 5 | Q63: days | S63: 0 | T63: No freeze
B64: 1 in | C64: 15 | D64: 18 - 20 | E64: 25 | O64: Sausage, smoked | P64: 7 | Q64: days | S64: 0 | T64: No freeze
B65: 1 1/2 in | C65: 20 | D65: 25 - 30 | E65: 50 | O65: sausage, dry | P65: 14 - 21 | Q65: days | S65: 0 | T65: No freeze
B66: 2 | C66: 30 | D66: 35 - 40 | E66: 50 | N66: Cooked | O66: meat and dishes | P66: 1 - 2 | Q66: days | S66: 2 - 3 | T66: months
B67: Lamb | O67: Gravy and Meat Sauce | P67: 1 - 2 | Q67: days | S67: 2 - 3 | T67: months
B68: 1 in | C68: 12 | N68: Poultry | O68: Whole fresh chicken | P68: 1 - 2 | Q68: days | S68: 12 | T68: months
B69: 1.5 | C69: 18 | O69: Whole fresh turkey | P69: 1 -2 | Q69: days | S69: 12 | T69: months
B70: 2 | C70: 22 | O70: Turkey, chicken parts | P70: 1 - 2 | Q70: days | S70: 6 | T70: months
B71: Ham | C71: (tenderized is less time) | O71: Duck, goose whole | P71: 1 - 2 | Q71: days | S71: 6 | T71: months
B72: 1/2 in | C72: 12 - 20 | O72: Giblets | P72: 1 - 2 | Q72: days | S72: 3 | T72: months
B73: 1 in | C73: 20 - 30 | N73: cooked | O73: Poultry Dishes | P73: 1 - 2 | Q73: days | S73: 6 | T73: months
B74: Bacon | C74: 2012-04-05 | O74: Fried Chicken | P74: 1 - 2 | Q74: days | S74: 4 | T74: months
O75: Pieces, broth covered | P75: 1 - 2 | Q75: days | S75: 6 | T75: months
O76: Pieces, no broth | P76: 2 - 2 | Q76: days | S76: 1 | T76: Month

Sheet Equip Ser #s

Sheet Ag
B2: Common Houseplant Problems | F2: GERMINATION | K2: Humidity Dependant (8% is lowest here)
K3: (OW - DW) / OW = MC
K4: OW - (MC x OW) = DW
B5: PROBLEM | C5: CAUSE | D5: CURE | F5: Vegtables | H5: Annuals | K5: (OW - (OW x (MC - DMC =
B6: Yellowing Bottom Leaves | C6: Lack of Nitrogen | D6: Water Regularly. Include liquid fertilizer | F6: Name | G6: # days | H6: Name | I6: # days
B7: Soft stems | C7: Too much water. Plant set too deep. | D7: Let plant dry out. Establish proper watering rate. Transplant to larger pot. | F7: Asparagus | G7: 21 - 28 | H7: Acrolinium | I7: 8 - 10 | L7: OW = Original Weight DW = dry Weight MC= Moisture Content DMC= Desired MC
B8: Curling leaves | C8: Too much water in roots. | D8: transplant to a larger pot with drainage holes. Establish proper watering rate. | F8: Beans, bush, bush lima, pole | G8: 6 - 10 | H8: Ageratum | I8: 7 - 11
B9: Dropping leaves | C9: Old leaves. Sudden decrease in light. New leaves. Top soil too heavy | D9: Old: Keep plant in sunny area. New: Repot with mixture of potting soil and vermiculite | F9: Beans, pole lima | G9: 7 - 12 | H9: Alyssum, sweet | I9: 10 - 13
B10: Black, misshapen leaves. | C10: soil too salty | D10: Remove plant. Flush salts from soil and roots. Repot. | F10: Beets | G10: 7 - 10 | H10: Browallia | I10: 18 - 20
B11: Dull leaves during new growth | C11: underfertilized | D11: Fertilize on a regular basis. | F11: Broccoli | G11: 6 - 10 | H11: Cacalia | I11: 8 - 12
B12: Brown leaf tips. | C12: Floride injury | D12: Trim off the damaged areas. Keep soil uniformly moist. | F12: Brussel Sprouts | G12: 6 - 10 | H12: Calendula | I12: 10 - 12
B13: Black spots on leaves | C13: Drafts | D13: Move plant to less drafty area. | F13: Cabbage | G13: 6 - 10 | H13: California poppy | I13: 5 - 10
B14: White fuzz on leaves. Flying fuzz | C14: Mealybugs or whitefly | D14: White fuzz: use Malathion Flying fuzz: use Malathion and rub leaves with rubbing alcohol every 3 - 4 days. | F14: Carrots | G14: 10 - 15 | H14: Candytuft | I14: 6 - 9
B15: Web-like matter on underside of leaves | C15: Red spider | D15: Wahs plant. Use malathion. | F15: Cauliflower | G15: 6 - 10 | H15: Canterbury Bell | I15: 12 - 15
B16: Pale, colorless new leaves that quickly turn brown | C16: Lack of Humidity | D16: Spray leaves. Raise room humidity if possible. | F16: Celery | G16: 12 - 20 | H16: Celosia, (Coxcomb) | I16: 20 - 25
B17: Tan spots on leaves | C17: Too much direct sunlight | D17: Move plant out of sunlight | F17: Chard, Swiss | G17: 7 - 10 | H17: Centaurea (Ragged Robin) | I17: 5 - 20
B18: Brown scales on stems | C18: small brown insects | D18: Rub leaves with rubbing alcohol every 3 - 4 days. | F18: Collards | G18: 6 - 10 | H18: Chrysanthemum | I18: 6 - 8
F19: Corn, Sweet | G19: 7 - 12 | H19: Cosmos | I19: 5 - 15
B20: Lavendar | F20: Cress, Garden | G20: 4 - 5 | H20: Cynoglossum | I20: 11 - 15
B21: Name | C21: Description | D21: Comments | F21: Cucumber | G21: 6 - 8 | H21: Flax | I21: 13 - 16
F22: Eggplant | G22: 10 - 15 | H22: Four-o-clock | I22: 12 - 15
F23: Endive | G23: 8 - 12 | H23: Gaillardia | I23: 12 - 15
F24: Kohlrabi | G24: 6 - 8 | H24: Gomphrena | I24: 20 - 25
F25: Lettuce | G25: 6 - 10 | H25: Helichrysum | I25: 5 - 10
F26: Muskmelon | G26: 6 - 10 | H26: Larkspur | I26: 15 - 20
F27: Mustard | G27: 4 - 5 | H27: Lupine | I27: 25 - 30
F28: Okra | G28: 15 - 20 | H28: Marigold | I28: 5 - 8
F29: Onion | G29: 8 - 12 | H29: Nicotaina | I29: 20 - 25
F30: Parsley | G30: 18 - 24 | H30: Petunia | I30: 18 - 20
F31: Parsnip | G31: 12 - 18 | H31: Phlox Drummondi | I31: 20 - 25
F32: Peas | G32: 6 - 10 | H32: Pinks | I32: 5 - 8
F33: Pepper | G33: 10 - 14 | H33: Portulaca | I33: 18 - 20
F34: Pumpkin | G34: 6 - 10 | H34: Scabiosa | I34: 18 - 20
F35: Radish | G35: 4 - 6 | H35: Snapdragon | I35: 20 - 25
F36: Rhubarb | G36: 12 - 14 | H36: Sweetpea | I36: 15 - 20
F37: Rutabaga | G37: 4 - 7 | H37: Verbena | I37: 8 - 10
F38: Spinach | G38: 6 - 12 | H38: Zinnia | I38: 5 - 8
F39: Squash, bush or vine | G39: 6 - 10
F40: Tomato | G40: 6 - 10
F41: Turnip | G41: 4 - 7
F42: Watermelon | G42: 8 - 12

Sheet Measurements
A1: MEASUREMENTS | O1: FORMULAS
B2: Metric | O2: Pi= 3.1416
B3: CAPACITY | I3: AREA | O3: Circumference | R3: d(pi)
B4: 10 | C4: Milliliters | D4: = | E4: 1 | F4: centiliter | I4: 100 | J4: sq millimeters | K4: = | L4: 1 | M4: sq centimeter | O4: Area
B5: 10 | C5: centiliters | D5: = | E5: 1 | F5: deciliter | I5: 100 | J5: sq centimeters | K5: = | L5: 1 | M5: sq decimeter | P5: circle | R5: sqd(.7854)
B6: 10 | C6: deciliter | D6: = | E6: 1 | F6: liter | I6: 100 | J6: sq decimeters | K6: = | L6: 1 | M6: sq meter (centare) | P6: Rectangle | R6: l(h)
B7: 10 | C7: liters | D7: = | E7: 1 | F7: dekaliter | I7: 100 | J7: sq meters | K7: = | L7: 1 | M7: are | P7: Sphere
B8: 10 | C8: dekaliters | D8: = | E8: 1 | F8: hectoliter | I8: 10000 | J8: sq meters | K8: = | L8: 1 | M8: hectare | Q8: surface | R8: r(sq)(pi)(4)
B9: 1000 | C9: liters | D9: = | E9: 1 | F9: kiloliter (stere) | I9: 100 | J9: hectares | K9: = | L9: 1 | M9: sq kilometer | P9: Square | R9: l(sq)
P10: Trapezoid | R10: Add Parallel sides (h)/2
B11: Length | I11: WEIGHT | P11: Triangle | R11: b(h)/2
B12: 10 | C12: millimeters | D12: = | E12: 1 | F12: Centimeter | I12: 10 | J12: milligrams | K12: = | L12: 1 | M12: centigram
B13: 10 | C13: Centimeters | D13: = | E13: 1 | F13: decimeter | I13: 10 | J13: centigrams | K13: = | L13: 1 | M13: decigram | O13: Volume
B14: 10 | C14: Decimeters | D14: = | E14: 1 | F14: meter (m) | I14: 10 | J14: decigrams | K14: = | L14: 1 | M14: gram | P14: Cone | R14: r(sq)pi(h)/3
B15: 10 | C15: meters | D15: = | E15: 1 | F15: dekameter | I15: 1000 | J15: grams | K15: = | L15: 1 | M15: kilogram (kilo) | P15: Cube | R15: l(cu)
B16: 100 | C16: meters | D16: = | E16: 1 | F16: hectometer | I16: 100 | J16: kilograms | K16: = | L16: 1 | M16: quintal | P16: Cylinder | R16: Base r(sq)pi(h)
B17: 1000 | C17: meters | D17: = | E17: 1 | F17: kilometer | I17: 1000 | J17: kilograms | K17: = | L17: 1 | M17: metric ton | P17: Pyramid | R17: A of base(h)/3
P18: Rectangle Prism | R18: l(w)(h)
B19: Metric Equivalents of U.S. Weights and Measures | P19: Sphere | R19: r(cu)pi(4)/3
B20: Dry Measure | I20: Avoirdupois Measure
B21: 1 | C21: pint | D21: = | E21: 0.550599 | F21: liter | I21: 1 | J21: ounce | K21: = | L21: 28.349527 grams
B22: 1 | C22: quart | D22: = | E22: 1.101197 | F22: liters | I22: 1 | J22: pound | K22: = | L22: 0.453592 | M22: kilogram
B23: 1 | C23: peck | D23: = | E23: 8.80958 | F23: liters | I23: 1 | J23: short ton | K23: = | L23: 0.90718486 | M23: metric ton
B24: 1 | C24: bushel | D24: = | E24: 0.35238 | F24: hectoliter | I24: 1 | J24: long ton | K24: = | L24: 1.01604704 | M24: metric tons
B26: Liquid Measure | I26: Square Measure
B27: 1 | C27: pint | D27: = | E27: 0.473167 | F27: liter | I27: 1 | J27: sq inch | K27: = | L27: 6.4516 | M27: sq centimeters
B28: 1 | C28: quart | D28: = | E28: 0.946332 | F28: liter | I28: 1 | J28: sq foot | K28: = | L28: 9.29034 | M28: sq decimeters
B29: 1 | C29: gallon | D29: = | E29: 3.785329 | F29: lliters | I29: 1 | J29: sq yard | K29: = | L29: 0.836131 | M29: sq meter | O29: Interest
I30: 1 | J30: acre | K30: = | L30: 0.40469 | M30: hectares | O30: The following is an approximate way to estimate the intterest on any principal for any number of days. When the principal contains cents, mark off four places from the right of the result to express the interest in dollars and cents. When the principal contains dollars only, mark off two places.
B31: Long Measure | I31: 1 | J31: sq mile | K31: = | L31: 2.59 | M31: sq kilometers
B32: 1 | C32: inch | D32: = | E32: 2.54 | F32: centimeters | I32: 2.59 | J32: sq kilometers | K32: = | L32: 259 | M32: hectares
B33: 1 | C33: yard | D33: = | E33: 0.914401 | F33: meters
B34: 1 | C34: mile | D34: = | E34: 1.609347 | F34: kilometers | I34: Cubic Measure
I35: 1 | J35: cu inch | K35: = | L35: 16.3872 | M35: cu centimeters
I36: 1 | J36: cu foot | K36: = | L36: 0.028317 | M36: cu meter | O36: 0.02 | P36: Principal | Q36: x | R36: # of days | S36: / 180 | V36: 0.08 | W36: Principal | X36: x | Y36: # of days | Z36: / 45
I37: 1 | J37: cu yard | K37: = | L37: 0.76456 | M37: cu meter | O37: 0.04 | P37: Principal | Q37: x | R37: # of days | S37: / 90 | V37: 0.09 | W37: Principal | X37: x | Y37: # of days | Z37: / 40
O38: 0.05 | P38: Principal | Q38: x | R38: # of days | S38: / 72 | V38: 0.1 | W38: Principal | X38: x | Y38: # of days | Z38: / 36
B39: Kilometer | D39: - | E39: Mile Conversion | I39: Miles | K39: - | L39: Kilometer Conversion | O39: 0.06 | P39: Principal | Q39: x | R39: # of days | S39: / 60 | V39: 0.12 | W39: Principal | X39: x | Y39: # of days | Z39: / 30
B40: 1 | E40: 0.06 | I40: 1 | L40: 1.6 | O40: 0.07 | P40: Principal | Q40: x | R40: # of days | S40: / 52 | V40: 0.15 | W40: Principal | X40: x | Y40: # of days | Z40: / 24
B41: 5 | E41: 3.1 | I41: 5 | L41: 8.05
B42: 10 | E42: 6.2 | I42: 10 | L42: 16 | O42: Number of days between the same day of two months (Excluding Leap Years)
B43: 20 | E43: 12.4 | I43: 20 | L43: 32.1
B44: 30 | E44: 18.6 | I44: 30 | L44: 48 | P44: Jan | Q44: Feb | R44: Mar | S44: Apr | T44: May | U44: Jun | V44: Jul | W44: Aug | X44: Sep | Y44: Oct | Z44: Nov | AA44: Dec
B45: 40 | E45: 24.8 | I45: 40 | L45: 64.3 | O45: Jan | P45: 365 | Q45: 31 | R45: 59 | S45: 90 | T45: 120 | U45: 151 | V45: 181 | W45: 212 | X45: 243 | Y45: 273 | Z45: 304 | AA45: 334
B46: 50 | E46: 31.1 | I46: 50 | L46: 80.5 | O46: Feb | P46: 334 | Q46: 365 | R46: 28 | S46: 59 | T46: 89 | U46: 120 | V46: 150 | W46: 181 | X46: 212 | Y46: 242 | Z46: 273 | AA46: 303
B47: 60 | E47: 37.3 | I47: 60 | L47: 96.6 | O47: Mar | P47: 306 | Q47: 337 | R47: 365 | S47: 31 | T47: 61 | U47: 92 | V47: 122 | W47: 153 | X47: 184 | Y47: 214 | Z47: 245 | AA47: 275
B48: 70 | E48: 43.5 | I48: 70 | L48: 112.75 | O48: Apr | P48: 275 | Q48: 306 | R48: 334 | S48: 365 | T48: 30 | U48: 61 | V48: 91 | W48: 122 | X48: 153 | Y48: 183 | Z48: 214 | AA48: 244
B49: 80 | E49: 49.7 | I49: 80 | L49: 128.7 | O49: May | P49: 245 | Q49: 276 | R49: 304 | S49: 334 | T49: 365 | U49: 31 | V49: 61 | W49: 92 | X49: 123 | Y49: 153 | Z49: 184 | AA49: 214
B50: 90 | E50: 55.9 | I50: 90 | L50: 144.8 | O50: Jun | P50: 214 | Q50: 245 | R50: 273 | S50: 304 | T50: 334 | U50: 365 | V50: 30 | W50: 61 | X50: 92 | Y50: 122 | Z50: 153 | AA50: 183
B51: 100 | E51: 62.1 | I51: 100 | L51: 160.9 | O51: Jul | P51: 184 | Q51: 215 | R51: 243 | S51: 274 | T51: 304 | U51: 335 | V51: 365 | W51: 31 | X51: 62 | Y51: 92 | Z51: 123 | AA51: 153
O52: Aug | P52: 153 | Q52: 184 | R52: 212 | S52: 243 | T52: 273 | U52: 304 | V52: 334 | W52: 365 | X52: 31 | Y52: 61 | Z52: 92 | AA52: 122
B53: U.S. Government Land Measure | O53: Sep | P53: 122 | Q53: 153 | R53: 181 | S53: 212 | T53: 242 | U53: 273 | V53: 303 | W53: 334 | X53: 365 | Y53: 30 | Z53: 61 | AA53: 91
B54: Township | D54: = | E54: 36 | F54: sections | O54: Oct | P54: 92 | Q54: 123 | R54: 151 | S54: 182 | T54: 212 | U54: 243 | V54: 273 | W54: 304 | X54: 335 | Y54: 365 | Z54: 31 | AA54: 61
B55: section | D55: = | E55: 640 | F55: acres | O55: Nov | P55: 61 | Q55: 92 | R55: 120 | S55: 151 | T55: 181 | U55: 212 | V55: 242 | W55: 273 | X55: 304 | Y55: 334 | Z55: 365 | AA55: 30
B56: quarter section | D56: = | E56: 0.5 | F56: sq mile | O56: Dec | P56: 31 | Q56: 62 | R56: 90 | S56: 121 | T56: 151 | U56: 182 | V56: 212 | W56: 243 | X56: 274 | Y56: 304 | Z56: 335 | AA56: 365
B57: .5 sq mile | D57: = | E57: 160\ | F57: acres
B58: 1/8 section | D58: = | E58: 0.5 | F58: miles long | G58: North and South | I58: and | J58: 0.25 mile wide | K58: = | L58: 80 acres | O58: Amount of One Dollar at Compound Interest
B59: 1/16 section | D59: = | E59: 0.25 | F59: mile sq
B60: 1/4 mile sq | D60: = | E60: 40 | F60: acres | O60: Years | P60: 0.03 | Q60: 0.04 | R60: 0.045 | S60: 0.05 | T60: 0.06
B61: All sections are numbered 1 - 36 starting in the NE Corner | O61: 1 | P61: 1.03 | Q61: 1.04 | R61: 1.04 | S61: 1.05 | T61: 1.06
B62: All sections are divided into quarters and named by cardinal points | O62: 2 | P62: 1.06 | Q62: 1.08 | R62: 1.09 | S62: 1.1 | T62: 1.12
O63: 3 | P63: 1.09 | Q63: 1.12 | R63: 1.14 | S63: 1.15 | T63: 1.19
C64: Inch | E64: Decimal | F64: Metric | J64: Kitchen measurements | O64: 4 | P64: 1.12 | Q64: 1.17 | R64: 1.19 | S64: 1.21 | T64: 1.26
C65: 0.03125 | D65: = | E65: 0.3125 | J65: 3 tsp | K65: = | L65: 1 tbsp | O65: 5 | P65: 1.15 | Q65: 1.21 | R65: 1.24 | S65: 1.27 | T65: 1.33
C66: 0.0625 | D66: = | E66: 0.0625 | J66: 4 tbsp | K66: = | L66: 1/4 cup | O66: 6 | P66: 1.19 | Q66: 1.26 | R66: 1.3 | S66: 1.34 | T66: 1.41
C67: 0.09375 | D67: = | E67: 0.09375 | J67: 5 1/2 tbsp | K67: = | L67: 1/3 cup | O67: 7 | P67: 1.23 | Q67: 1.31 | R67: 1.36 | S67: 1.4 | T67: 1.5
C68: 0.125 | D68: = | E68: 0.125 | J68: 8 tbsp | K68: = | L68: 1/2 cup | O68: 8 | P68: 1.26 | Q68: 1.36 | R68: 1.42 | S68: 1.47 | T68: 1.59
C69: 0.15625 | D69: = | E69: 0.15625 | J69: 10 1/2 tbsp | K69: = | L69: 2/3 cup | O69: 9 | P69: 1.3 | Q69: 1.42 | R69: 1.48 | S69: 1.55 | T69: 1.68
C70: 0.1875 | D70: = | E70: 0.1875 | J70: 12 tbsp | K70: = | L70: 3/4 cup | O70: 10 | P70: 1.34 | Q70: 1.48 | R70: 1.55 | S70: 1.62 | T70: 1.79
C71: 0.21875 | D71: = | E71: 0.21875 | J71: 16 tbsp | K71: = | L71: 1 cup | O71: 11 | P71: 1.375 | Q71: 1.53 | R71: 1.62 | S71: 1.71 | T71: 1.89
C72: 0.25 | D72: = | E72: 0.25 | O72: 12 | P72: 1.42 | Q72: 1.6 | R72: 1.69 | S72: 1.79 | T72: 2.01
C73: 0.28125 | D73: = | E73: 0.28125 | J73: 2 tbsp | K73: = | L73: 1 oz liquid | O73: 13 | P73: 1.46 | Q73: 1.66 | R73: 1.77 | S73: 1.88 | T73: 2.13
C74: 0.3125 | D74: = | E74: 0.3125 | J74: 1 cup | K74: = | L74: 1/2 pint | O74: 14 | P74: 1.51 | Q74: 1.73 | R74: 1.85 | S74: 1.98 | T74: 2.26
C75: 0.34375 | D75: = | E75: 0.34375 | J75: 2 cups | K75: = | L75: 1 pint | O75: 15 | P75: 1.55 | Q75: 1.8 | R75: 1.93 | S75: 2.07 | T75: 2.39
C76: 0.375 | D76: = | E76: 0.375 | J76: 4 cups | K76: = | L76: 1 quart | O76: 16 | P76: 1.6 | Q76: 1.87 | R76: 2.02 | S76: 2.18 | T76: 2.54
C77: 0.40625 | D77: = | E77: 0.40625 | J77: 4 quarts | K77: = | L77: 1 gallon | O77: 17 | P77: 1.65 | Q77: 1.94 | R77: 2.11 | S77: 2.29 | T77: 2.69
C78: 0.4375 | D78: = | E78: 0.4375 | J78: 8 quarts | K78: = | L78: 1 peck | O78: 18 | P78: 1.7 | Q78: 2.02 | R78: 2.2 | S78: 2.4 | T78: 2.85
C79: 0.46875 | D79: = | E79: 0.46875 | J79: 4 pecks | K79: = | L79: 1 bushel | O79: 19 | P79: 1.75 | Q79: 2.1 | R79: 2.3 | S79: 2.52 | T79: 3.02
C80: 0.5 | D80: = | E80: 0.5 | O80: 20 | P80: 1.8 | Q80: 2.19 | R80: 2.41 | S80: 2.65 | T80: 3.2
C81: 0.53125 | D81: = | E81: 0.53125 | J81: Can Sizes | O81: 21 | P81: 1.86 | Q81: 2.27 | R81: 2.52 | S81: 2.78 | T81: 3.4
C82: 0.5625 | D82: = | E82: 0.5625 | J82: 8 oz | K82: = | L82: 1 cup | O82: 22 | P82: 1.91 | Q82: 2.37 | R82: 2.63 | S82: 2.92 | T82: 3.6
C83: 0.59375 | D83: = | E83: 0.59375 | J83: Picnic | K83: = | L83: 1 1/2 cups (10 oz) | O83: 23 | P83: 1.97 | Q83: 2.46 | R83: 2.75 | S83: 3.07 | T83: 3.82
C84: 0.625 | D84: = | E84: 0.625 | J84: # 1 | K84: = | L84: 2 cups(16 oz) | O84: 24 | P84: 2.03 | Q84: 2.56 | R84: 2.87 | S84: 3.22 | T84: 4.04
C85: 0.65625 | D85: = | E85: 0.65625 | J85: # 2 | K85: = | L85: 2 1/2 cups (20 oz) | O85: 25 | P85: 2.09 | Q85: 2.66 | R85: 3 | S85: 3.38 | T85: 4.29
C86: 0.6875 | D86: = | E86: 0.6875 | J86: # 2 1/2 | K86: = | L86: 3 1/2 cups (28 oz) | O86: 26 | P86: 2.15 | Q86: 2.77 | R86: 3.14 | S86: 3.55 | T86: 4.54
C87: 0.71875 | D87: = | E87: 0.71875 | J87: #3 | K87: = | L87: 4 cups (32 oz) | O87: 27 | P87: 2.22 | Q87: 2.88 | R87: 3.28 | S87: 3.73 | T87: 4.82
C88: 0.75 | D88: = | E88: 0.75 | J88: #10 | K88: = | L88: 13 cups (6lb 10 oz) | O88: 28 | P88: 2.28 | Q88: 2.99 | R88: 3.43 | S88: 3.92 | T88: 5.11
C89: 0.78125 | D89: = | E89: 0.78125 | O89: 29 | P89: 2.35 | Q89: 3.11 | R89: 3.58 | S89: 4.11 | T89: 5.41
C90: 0.8125 | D90: = | E90: 0.8125 | O90: 30 | P90: 2.42 | Q90: 3.24 | R90: 3.74 | S90: 4.32 | T90: 5.74
C91: 0.84375 | D91: = | E91: 0.84375 | O91: 31 | P91: 2.5 | Q91: 3.37 | R91: 3.91 | S91: 4.53 | T91: 6.08
C92: 0.875 | D92: = | E92: 0.875 | O92: 32 | P92: 2.57 | Q92: 3.5 | R92: 4.09 | S92: 4.76 | T92: 6.45
C93: 0.90625 | D93: = | E93: 0.90625 | O93: 33 | P93: 2.65 | Q93: 3.64 | R93: 4.27 | S93: 5 | T93: 6.84
C94: 0.9375 | D94: = | E94: 0.9375 | O94: 34 | P94: 2.73 | Q94: 3.79 | R94: 4.46 | S94: 5.25 | T94: 7.25
C95: 0.96875 | D95: = | E95: 0.96875 | O95: 35 | P95: 2.81 | Q95: 3.94 | R95: 4.66 | S95: 5.51 | T95: 7.68
C96: 1 | D96: = | E96: 1 | O96: 100 | P96: 19.21 | Q96: 50.5 | R96: 81.58 | S96: 131.5 | T96: 339.3

Sheet Info
B2: Time | G2: Post Authorized 2 Letter Codes
B3: Time Differences
B4: Computed by adding the pos or neg number next to the city when it is noon (12:00) EST in New York | G4: Alabama | H4: AL | I4: Montana | J4: MT | L4: Horsepower | N4: s = Shaft Speed | Q4: hp changes only with changes in speed or torque.
G5: Alaska | H5: AK | I5: Nebraska | J5: NE | N5: t = shaft torque in ft lbs.
G6: Arizona | H6: AZ | I6: Nevada | J6: NV | L6: HP | M6: = 2Π ST | Q6: 1 HP - 745.7 Watts
B7: City | C7: Zone | D7: City | E7: Zone | G7: Arkansas | H7: AR | I7: New Hampshire | J7: NH | M7: 33000 | Q7: (100 hp = 74570 watts or 74.6 Kw)
B8: Alexandria | C8: + 7 | D8: Istanbul | E8: + 7 | G8: California | H8: CA | I8: New Jersy | J8: NJ
B9: Amsterdam | C9: + 6 | D9: Jerusalem | E9: + 7 | G9: Colorado | H9: CO | I9: New Mexico | J9: NM
B10: Anchorage | C10: - 5 | D10: Johannesburg | E10: + 7 | G10: Connecticut | H10: CT | I10: New York | J10: NY
B11: Athens | C11: + 7 | D11: Karachi | E11: + 10 | G11: Deleware | H11: DE | I11: North Carolina | J11: NC
B12: Auckland | C12: + 17 | D12: Lima | E12: 0 | G12: Dist. Of Col. | H12: DC | I12: North Dakota | J12: ND
B13: Baghdad | C13: + 8 | D13: Lisbon | E13: + 6 | G13: Florida | H13: FL | I13: Ohio | J13: OH
B14: Barcelona | C14: + 6 | D14: London | E14: + 5 | G14: Georgia | H14: GA | I14: Oklahoma | J14: OK
B15: Basra | C15: + 8 | D15: Los Angeles | E15: - 3 | G15: Guam | H15: GM | I15: Oregon | J15: OR
B16: Belfast | C16: + 5 | D16: Melbourne | E16: + 15 * | G16: Hawaii | H16: HI | I16: Pennsylvania | J16: PA
B17: Berlin | C17: + 6 | D17: Moscow | E17: + 8 | G17: Idaho | H17: ID | I17: Puerto Rico | J17: PR
B18: Bogota | C18: 0 | D18: Oslo | E18: + 6 | G18: Illinois | H18: IL | I18: Rhode Island | J18: RI
B19: Bombay | C19: + 10.5 | D19: Peking | E19: + 13 * | G19: Indiana | H19: IN | I19: South Carolona | J19: SC
B20: Brussels | C20: + 6 | D20: Paris | E20: + 6 | G20: Iowa | H20: IA | I20: South Dakota | J20: SD
B21: Budapest | C21: + 6 | D21: Pheonix | E21: - 2 | G21: Kansas | H21: KS | I21: Tennessee | J21: TN
B22: Buenos Aires | C22: + 2 | D22: Rio de Janeiro | E22: + 2 | G22: Kentucky | H22: KY | I22: Texas | J22: TX
B23: Caracas | C23: + 1 | D23: Rome | E23: + 6 | G23: Louisiana | H23: LA | I23: Utah | J23: UT
B24: Chicago | C24: - 1 | D24: Santiago | E24: + 1 | G24: Maine | H24: ME | I24: Vermont | J24: VT
B25: Copenhagen | C25: + 6 | D25: Seoul | E25: + 14 * | G25: Maryland | H25: MD | I25: Verginia | J25: VA
B26: Damascus | C26: + 7 | D26: Shanghai | E26: + 13 * | G26: Massechusettes | H26: MA | I26: Virgin Islands | J26: VI
B27: Delhi | C27: + 10.5 | D27: Singapore | E27: + 12.5 * | G27: Michigan | H27: MI | I27: Washington | J27: WA
B28: Denver | C28: - 2 | D28: Stockholm | E28: + 6 | G28: Minnesota | H28: MN | I28: West Virginia | J28: WV
B29: Dublin | C29: + 5 | D29: Sydney | E29: + 15 * | G29: Mississippi | H29: MS | I29: Wisconsin | J29: WI
B30: Frankfurt | C30: + 6 | D30: Tehran | E30: + 8.5 | G30: Missouri | H30: MO | I30: Wyoming | J30: WY
B31: Geneva | C31: + 6 | D31: Tokyo | E31: + 14
B32: Glasgow | C32: + 5 | D32: Vladivostok | E32: + 15 | G32: Abbreviations approved for mail
B33: Halifax | C33: + 1 | D33: Warsaw | E33: + 6 | G33: Alley | H33: Aly | I33: Grove | J33: Grv
B34: Hong Kong | C34: + 13.5 * | D34: Washington | E34: 0 | G34: Arcade | H34: Arc | I34: Heights | J34: Hts
B35: Havana | C35: 0 | D35: Yokohama | E35: + 14 | G35: Avenue | H35: Ave | I35: Highway | J35: Hwy
B36: Honolulu | C36: - 5 | D36: Zurich | E36: +6 | G36: Building | H36: Blvd | I36: lane | J36: Ln
G37: Branch | H37: Br | I37: Manor | J37: Mnr
B38: * Indicates the morning of the following day. | G38: Bypass | H38: Byp | I38: Place | J38: Pl
B39: ABOUT JET LAG | G39: Causeway | H39: Cswy | I39: Plaza | J39: Plz
B40: Any time you travel through more than two time zones, you're likely to experience jet lag, a condition in which it's difficult to sleepa t night and stay awake during the day. You'll also find yourself hungry at inappropriate times. Researchers say jet lag is caused by the disruption of teh circadian sleep-wakefullness cycle. In other words, our biological clock isn't synchronized with the local time zone. | G40: Center | H40: Ctr | I40: Point | J40: Pt
G41: Circle | H41: Cir | I41: Road | J41: Rd
G42: Court | H42: Ct | I42: Rural | J42: R
G43: Courts | H43: Cts | I43: Square | J43: Sq
G44: Crescent | H44: Cres | I44: Street | J44: St
G45: Drive | H45: Dr | I45: Terrace | J45: Ter
G46: Expressway | H46: Expy | I46: Trail | J46: Trl
G47: Estended | H47: Ext | I47: Turnpike | J47: Tpke
G48: Extension | H48: Ext | I48: Viaduct | J48: Via
B49: WHAT CAN I DO ABOUT IT? | G49: Freeway | H49: Fwy | I49: Vista | J49: Vis
B50: ** Get plenty of rest before your trip, and, if possible, alter your sleep by even 1 to 2 hours to get a little closer to the new time zone. | G50: Gardens | H50: Gdns
G52: Approved Abbreviations for Canada
B53: ** Set your watch to your destination time as soons as onboard your flight, then try to sleep and eat according to that time. | G53: Alberta | H53: AB | I53: Ontario | J53: ON
G54: British Columbia | H54: BC | I54: Prince Edward Is | J54: PE
G55: Manitoba | H55: MB | I55: Quebec | J55: PQ
B56: ** Upon arrival,fit into the local time as quickly as you can, participating in enough social activities to force youself to stay alert or feel sleepy at the appropriate times. | G56: New Brunswick | H56: NB | I56: Saskatchewan | J56: SK
G57: Newfoundland | H57: NF | I57: Yukon Territory | J57: YT
G58: Nova Scotia | H58: NS | I58: Labrador | J58: LB

Sheet Recipies
B2: White Sauce | F2: Kitchen Measurements
B3: Med | C3: (1 cup) | F3: 2 tbsp fat = 1 oz
B4: 2 | C4: tbsp | D4: Butter | F4: 1/2 cup fat = 1/4 pound or 1 stick
B5: 2 | C5: tbsp | D5: Flour | F5: 1 cup fat = 1/2 lb
B6: 1/4 | C6: tsp | D6: salt | F6: 2 cups fat = 1 lb
B7: 1 | C7: cup | D7: milk | F7: 1 cup hydro fat + 1 tsp salt = 1 cup butter
F8: 2 1/4 cups firm pack brown sugar = 1 lb
B9: Thick | C9: (1 cup) | F9: 1 1/2 cups firm pack brown sugar = 1 cup granulated sugar
B10: 3 | C10: tbsp | D10: Butter | F10: 3 1/2 cups confectioner's sugar = 1 lb
B11: 4 | C11: tbsp | D11: Flour | F11: 4 cups sifted gen purp flour = 1 lb
B12: 1/4 | C12: tsp | D12: salt | F12: 4 1/2 cups sifted cake flour = 1 lb
B13: 1 | C13: cup | D13: milk | F13: 1 cup minus 2 tbsp all purp flour = 1 cup sifted cake flour
F14: 3 1/2 cups unsifted graham flour = 1 lb
B15: Thin | C15: (1 cup) | F15: 3 cups corn meal = 1 lb
B16: 1 | C16: tbsp | D16: Butter | F16: 1 tbsp cornstarch = 2 tbsp flour
B17: 1 | C17: tbsp | D17: Flour | F17: 2 1/2 cups rice = 1 lb
B18: 1/4 | C18: tsp | D18: salt | F18: 1 square chocolate = 1 oz
B19: 1 | C19: cup | D19: milk | F19: 3 1/2 tbsp cocoa and 1/2 tbsp butter = 1 oz or 1 sq chocolate
F20: 3 cups seedless raisins = 1 15 oz package
B21: Melt butter in saucepan over low heat. Blend in flour, salt and a dash of white pepper, Add milk all at once. Cook quickly, stirring constantly, until mixture thickens and bubbles. | F21: 3 1/2 cups seeded raisins = 1 15 oz package
F22: 1 cup chopped nut meats = 1.4 lb
F23: 16 marshmellows = 1/4 lb
F24: 5 cups grated cheese = 1 lb
F25: 6 1/2 tbsp cream cheese = 1 3 oz package
F26: 7 coarsly crumbled salted crackers = 1 cup
F27: 9 fine crumbled salted crackers = 1 cup
F28: 9 coarsly crumbled graham crackers = 1 cup
B29: Plain Pastry | F29: 11 finely crumbles graham crackers = 1 cup
B30: Single Crust | F30: 20 coarsly crumbled small vanilla wafers = 1 cup
B31: 1 1/4 | C31: cups | D31: Flour | F31: 30 finely crumbled small vanilla wafers = 1 cup
B32: 1/2 | C32: tsp | D32: salt | F32: 4 coarsly crumbled zwieback = 1 cup
B33: 1/2 | C33: cups | D33: shortening | F33: 9 finely crumbled zwieback = 1 cup
B34: 4 - 5 | C34: tbsp | D34: cold water | F34: 1 1/2 tbs vinegar + sweet milk to 1 cup = 1 cup sour milk
B35: Double | F35: 1 1/2 tbs lemon juice + sweet milk to 1 cup = 1 cup sour milk
B36: 2 | C36: cups | D36: Flour | F36: 1/2 cup evap milk + 1/2 cup water = 1 cup milk
B37: 1 | C37: tsp | D37: salt | F37: 1 lemon = 3 - 4 tbsp juice
B38: 2/3 | C38: cups | D38: shortening | F38: Grated rind of 1 lemon = 1 1/2 tsp
B39: 5 - 7 | C39: tbsp | D39: cold water | F39: 1 orange = 6 - 8 tbsp juice
F40: Grated rind of 1 orange = 1 tbsp
B41: Sift All-purpose flour and salt. Cut in shortening until pieces are the size of small peas. Sprinkle water over, one tablespoon as a time, tossing mixture after each addition. Form into ball; flatten on lightly floured surface. Roll 1/8 inch thick from center to edge. | F41: 12 - 14 egg yolks = 1 cup
F42: 8 - 10 egg whites = 1 cup
F44: Kitchen Metrics
F45: 1/4 tsp = 1.2 ml
F46: 1/2 tsp = 2.5 ml
F47: 1 tsp = 4.9 ml
F48: 1 tbsp = 14.8 ml
F49: 1 jigger = 44.4 ml
F50: 1/4 cup = 59.2 ml
F51: 1/3 cup = 78.9 ml
F52: 1/2 cup = 118.4 ml
F53: 2/3 cup = 157.7 ml
F54: 3/4 cup = 177.5 ml
F55: 1 cup = 236.8 ml
F56: 1 pint = 437.6 ml
F57: 1 quart = 947.2 ml
F58: 2 liter = 1.000 ml

Sheet Health
B2: BMI Chart
B3: Height and weight chart for adults | H3: Calorie Table
B4: MEN | H4: Milk, Cream and Cheese
B5: Height | C5: small frame | D5: med frame | E5: large frame | H5: Milk, Fluid, Whole, 3.5% fat | K5: 1 cup | L5: 160
B6: 5'2 | C6: 128 - 134 | D6: 131 - 141 | E6: 138 - 150
B7: 5'3 | C7: 130 - 136 | D7: 133 - 143 | E7: 140 - 153
B8: 5'4 | C8: 132 - 138 | D8: 135 - 145 | E8: 142 - 156
B9: 5'5 | C9: 134 - 140 | D9: 137 - 148 | E9: 144 - 160
B10: 5'6 | C10: 136 - 142 | D10: 139 - 151 | E10: 146 - 164
B11: 5'7 | C11: 138 - 145 | D11: 142 - 154 | E11: 149 - 168
B12: 5'8 | C12: 140 - 148 | D12: 145 - 157 | E12: 152 - 172
B13: 5'9 | C13: 142 - 151 | D13: 148 - 160 | E13: 155 - 176
B14: 5'10 | C14: 144 - 154 | D14: 151 - 163 | E14: 158 - 180
B15: 5'11 | C15: 146 - 157 | D15: 154 - 166 | E15: 161 -184
B16: 6' | C16: 149 - 160 | D16: 157 - 170 | E16: 164 - 188
B17: 6'1 | C17: 152 - 164 | D17: 160 - 174 | E17: 168 - 192
B18: 6'2 | C18: 155 -168 | D18: 164 - 168 | E18: 172 - 197
B19: 6'3 | C19: 158 - 172 | D19: 167 - 172 | E19: 176 - 202
B20: 6'4 | C20: 162 - 176 | D20: 171 - 176 | E20: 181 - 207
B22: WOMEN
B23: Height | C23: small frame | D23: med frame | E23: large frame
B24: 4' 10 | C24: 102 - 111 | D24: 109 - 121 | E24: 118 - 131
B25: 4' 11 | C25: 103 -113 | D25: 111 - 123 | E25: 120 - 134
B26: 5' | C26: 104 -115 | D26: 113 - 126 | E26: 122 - 137
B27: 5'1 | C27: 106 - 118 | D27: 115 - 129 | E27: 125 - 140
B28: 5'2 | C28: 108 - 121 | D28: 118 - 132 | E28: 128 - 143
B29: 5'3 | C29: 111 - 124 | D29: 121 - 135 | E29: 131 - 147
B30: 5'4 | C30: 114 - 127 | D30: 124 - 138 | E30: 134 - 151
B31: 5'5 | C31: 117 - 130 | D31: 127 - 141 | E31: 137 - 155
B32: 5'6 | C32: 120 - 133 | D32: 130 - 144 | E32: 140 - 159
B33: 5'7 | C33: 123 - 136 | D33: 133 - 147 | E33: 143 - 163
B34: 5'8 | C34: 126 - 139 | D34: 136 - 150 | E34: 146 - 167
B35: 5'9 | C35: 129 - 142 | D35: 139 - 153 | E35: 149 - 170
B36: 5'10 | C36: 132 - 145 | D36: 142 - 156 | E36: 152 - 173
B37: 5'11 | C37: 135 - 148 | D37: 145 - 159 | E37: 155 - 176
B38: 6' | C38: 138 - 151 | D38: 148 - 162 | E38: 158 - 179

Sheet Animals
H1: YEARS | I1: Feed to date
B2: Medical | H2: 4 | I2: Pound Sack Counts
B3: Symptom | D3: Medication | I3: 2 | J3: 5 | K3: 8 | L3: 10 | M3: 12 | N3: 14 | O3: 16 | P3: 18 | Q3: 20 | R3: 22 | S3: 24 | T3: 25 | U3: 30 | V3: 32 | W3: 34 | X3: 35 | Y3: 36 | Z3: 40 | AA3: 41 | AB3: 42 | AC3: 46 | AD3: 50 | AE3: 55 | AF3: 75 | AG3: 100 | AH3: TOTALS
H4: Puppy | L4: 1 | AH4: =SUM(I4:AG4) -> 1
B5: Goat Bleeding | D5: Phosphorous | H5: Dog | P5: 1 | Q5: 4 | U5: 2 | V5: 16 | W5: 7 | X5: 1 | Y5: 1 | Z5: 2 | AA5: 1 | AB5: 2 | AC5: 1 | AH5: =SUM(I5:AG5) -> 38
B6: Goat Pain | D6: Arnica | H6: Cat | M6: 1 | N6: 5 | O6: 11 | P6: 1 | Q6: 1 | Z6: 1 | AH6: 20
B7: Birds | D7: Cocodosis Treatment
B8: Antibiotic | D8: Terramyacyn 343, 4.78 oz | I8: =SUM(I4:I6) -> 0 | J8: 0 | K8: 0 | L8: 1 | M8: 1 | N8: 5 | O8: 11 | P8: 2 | Q8: 5 | R8: 0 | S8: 0 | T8: 0 | U8: 2 | V8: 16 | W8: 7 | X8: 1 | Y8: 1 | Z8: 3 | AA8: 1 | AB8: 2 | AC8: 1 | AD8: 0 | AE8: 0 | AF8: 0 | AG8: 0 | AH8: 59
I9: $ /Yr | J9: $ /Yr | K9: $ /Yr | L9: $ /Yr | M9: $ /Yr | N9: $ /Yr | O9: $ /Yr | P9: $ /Yr | Q9: $ /Yr | R9: $ /Yr | S9: $ /Yr | T9: $ /Yr | U9: $ /Yr | V9: $ /Yr | W9: $ /Yr | X9: $ /Yr | Y9: $ /Yr | Z9: $ /Yr | AA9: $ /Yr | AB9: $ /Yr | AC9: $ /Yr | AD9: $ /Yr | AE9: $ /Yr | AF9: $ /Yr | AG9: $ /Yr
I10: =IF(I7<>0,(I7*20)/$H$2,0) -> 0 | J10: 0 | K10: 0 | L10: 0 | M10: 0 | N10: 0 | O10: 0 | P10: 0 | Q10: 0 | R10: 0 | S10: 0 | T10: 0 | U10: 0 | V10: 0 | W10: 0 | X10: 0 | Y10: 0 | Z10: 0 | AA10: 0 | AB10: 0 | AC10: 0 | AD10: 0 | AE10: 0 | AF10: 0 | AG10: 0
H11: Poultry
H12: Starter | T12: 4 | AD12: 1 | AH12: =SUM(I12:AG12) -> 5
H13: Grower | AH13: =SUM(I13:AG13) -> 0
H14: Layer | AD14: 16 | AH14: =SUM(I14:AG14) -> 16
H15: Scratch | T15: 15 | AD15: 4 | AH15: =SUM(I15:AG15) -> 19
H16: Cracked Corn | AD16: 1 | AH16: =SUM(I16:AG16) -> 1
H18: GOAT | I18: =SUM(I12:I16) -> 0 | J18: 0 | K18: 0 | L18: 0 | M18: 0 | N18: 0 | O18: 0 | P18: 0 | Q18: 0 | R18: 0 | S18: 0 | T18: 19 | U18: 0 | V18: 0 | W18: 0 | X18: 0 | Y18: 0 | Z18: 0 | AA18: 0 | AB18: 0 | AC18: 0 | AD18: 22 | AE18: 0 | AF18: 0 | AG18: 0 | AH18: 41
I19: $ /Yr | J19: $ /Yr | K19: $ /Yr | L19: $ /Yr | M19: $ /Yr | N19: $ /Yr | O19: $ /Yr | P19: $ /Yr | Q19: $ /Yr | R19: $ /Yr | S19: $ /Yr | T19: $ /Yr | U19: $ /Yr | V19: $ /Yr | W19: $ /Yr | X19: $ /Yr | Y19: $ /Yr | Z19: $ /Yr | AA19: $ /Yr | AB19: $ /Yr | AC19: $ /Yr | AD19: $ /Yr | AE19: $ /Yr | AF19: $ /Yr | AG19: $ /Yr
I20: =IF(I18<>0,(I18*20)/$H$2,0) -> 0 | J20: =IF(J18<>0,(J18*20)/$H$2,0) -> 0 | K20: 0 | L20: 0 | M20: 0 | N20: 0 | O20: 0 | P20: 0 | Q20: 0 | R20: 0 | S20: 0 | T20: 95 | U20: 0 | V20: 0 | W20: 0 | X20: 0 | Y20: 0 | Z20: 0 | AA20: 0 | AB20: 0 | AC20: 0 | AD20: 110 | AE20: 0 | AF20: 0 | AG20: 0
H21: Alfalfa Cubes
H22: Cob | AD22: 1 | AH22: =SUM(I22:AG22) -> 1
H23: Sweet Cob | AH23: 0
H24: Goat Feed | AE24: 2 | AH24: 2
H25: Minerals | AD25: 2 | AH25: 2
H26: Grain - Mill | T26: 2 | AD26: 15 | AH26: 17
H27: Dairy Feed | AD27: 10 | AH27: 10
AH28: 0
AH29: 0
AH30: 0
I32: =SUM(I22:I30) -> 0 | J32: =SUM(J22:J30) -> 0 | K32: 0 | L32: 0 | M32: 0 | N32: 0 | O32: 0 | P32: 0 | Q32: 0 | R32: 0 | S32: 0 | T32: 2 | U32: 0 | V32: 0 | W32: 0 | X32: 0 | Y32: 0 | Z32: 0 | AA32: 0 | AB32: 0 | AC32: 0 | AD32: 28 | AE32: 2 | AF32: 0 | AG32: 0 | AH32: 32
I33: $ /Yr | J33: $ /Yr | K33: $ /Yr | L33: $ /Yr | M33: $ /Yr | N33: $ /Yr | O33: $ /Yr | P33: $ /Yr | Q33: $ /Yr | R33: $ /Yr | S33: $ /Yr | T33: $ /Yr | U33: $ /Yr | V33: $ /Yr | W33: $ /Yr | X33: $ /Yr | Y33: $ /Yr | Z33: $ /Yr | AA33: $ /Yr | AB33: $ /Yr | AC33: $ /Yr | AD33: $ /Yr | AE33: $ /Yr | AF33: $ /Yr | AG33: $ /Yr
I34: =IF(I32<>0,(I32*20)/$H$2,0) -> 0 | J34: =IF(J32<>0,(J32*20)/$H$2,0) -> 0 | K34: 0 | L34: 0 | M34: 0 | N34: 0 | O34: 0 | P34: 0 | Q34: 0 | R34: 0 | S34: 0 | T34: 10 | U34: 0 | V34: 0 | W34: 0 | X34: 0 | Y34: 0 | Z34: 0 | AA34: 0 | AB34: 0 | AC34: 0 | AD34: 140 | AE34: 10 | AF34: 0 | AG34: 0 | AH34: =SUM(AH8+AH18+AH32) -> 132
R35: Amt Total | T35: Amt / yr | V35: Amt / Mo | X35: Amt / Day | AH35: TOTAL
R36: =(AH34*20) -> 2640 | T36: =(AH34*20)/H2 -> 660 | V36: =(AH34*20)/H2/12 -> 55 | X36: =(AH34*20)/365 -> 7.232876712

Sheet Electronics
A1: Electronic Worksheet
A2: SERIES EQUIVALENT | K2: PARALLEL EQUIVALENT
B3: R1 | C3: R2 | D3: R3 | E3: R4 | F3: R5 | G3: R6 | H3: TOTAL | L3: R1 // R2 | M3: R3 // R4 | N3: R5 // R6 | O3: R7 // R8 | P3: R9 // R10 | R3: TOTAL
A4: E | H4: ADD | K4: E | L4: =B12 -> 4.31383996 | M4: =C12 -> 7.68616004 | N4: =D12 -> 0 | O4: =E12 -> 0 | P4: =F12 -> 4.31383996 | Q4: =$C$26 -> 24
A5: I | H5: EQUAL | K5: I | L5: =$H$13 -> 0.06039255159 | M5: =$H$13 -> 0.06039255159 | N5: 0.06039255159 | O5: 0.06039255159 | P5: 0.06039255159 | Q5: =$H$13 -> 0.06039255159
A6: R | B6: 100 | C6: 250 | D6: 350 | E6: 200 | H6: ADD | K6: R | L6: =L14 -> 71.43 | M6: =M14 -> 127.27 | N6: =N14 -> 0 | O6: 0 | P6: 71.43 | Q6: =IF(Q5<>0,Q4/Q5,0) -> 397.4
A7: P | H7: ADD | K7: P | L7: =IF(L4<>0,L4*L5,0) -> 0.2605238023 | M7: =IF(M4<>0,M4*M5,0) -> 0.4641868167 | N7: 0 | O7: 0 | P7: 0.2605238023 | Q7: =SUM(L7:P7) -> 0.9852344213
A10: SERIES | K10: PARALLEL
B11: R1 | C11: R2 | D11: R3 | E11: R4 | F11: R5 | G11: R6 | H11: TOTAL | L11: R1 | M11: R2 | N11: R3 | O11: R4 | P11: R5 | Q11: R6 | R11: TOTAL
A12: E | B12: =IF(H13<>0,H13*C20,0) -> 4.31383996 | C12: =IF(H13<>0,H13*C21,0) -> 7.68616004 | D12: =IF(H13<>0,H13*C22,0) -> 0 | E12: =IF(H13<>0,H13*C23,0) -> 0 | F12: =IF(H13<>0,H13*C24,0) -> 4.31383996 | G12: =IF(H13<>0,H13*C25,0) -> 7.68616004 | H12: =C26 -> 24 | K12: E | L12: =$R$12 -> 24 | M12: =$R$12 -> 24 | N12: 24 | O12: 24 | P12: 24 | Q12: 24 | R12: =C26 -> 24
A13: I | B13: =H13 -> 0.06039255159 | C13: =H13 -> 0.06039255159 | D13: =H13 -> 0.06039255159 | E13: =H13 -> 0.06039255159 | F13: =H13 -> 0.06039255159 | G13: =H13 -> 0.06039255159 | H13: =IF(H14<>0,H12/H14,0) -> 0.06039255159 | K13: I | L13: =IF(C20<>0, C26/C20,0) -> 0.3359932801 | M13: =IF(C21<>0, C26/C21,0) -> 0.1885754695 | N13: =IF(C22<>0, C26/C22,0) -> 0 | O13: =IF(C23<>0, C26/C23,0) -> 0 | P13: =IF(C24<>0, C26/C24,0) -> 0.3359932801 | Q13: =IF(C25<>0, C26/C25,0) -> 0.1885754695 | R13: =SUM(L13:Q13) -> 1.049137499
A14: R | B14: =C20 -> 71.43 | C14: =C21 -> 127.27 | D14: =C22 -> 0 | E14: =C23 -> 0 | F14: =C24 -> 71.43 | G14: =C25 -> 127.27 | H14: =SUM(C20:C25) -> 397.4 | K14: R | L14: =C20 -> 71.43 | M14: =C21 -> 127.27 | N14: =C22 -> 0 | O14: =C23 -> 0 | P14: =C24 -> 71.43 | Q14: =C25 -> 127.27 | R14: =IF(R13<>0,R12/R13,0) -> 22.87593382 | S14: Less than any 1
A15: P | B15: =IF(B12<>0,B12*B13,0) -> 0.2605238023 | C15: 0.4641868167 | D15: 0 | E15: 0 | F15: 0.2605238023 | G15: 0.4641868167 | H15: =H12*H13 -> 1.449421238 | I15: Greater than any 1 | K15: P | L15: =L12*L13 -> 8.063838723 | M15: =M12*M13 -> 4.525811267 | N15: 0 | O15: =O12*O13 -> 0 | P15: =P12*P13 -> 8.063838723 | Q15: =Q12*Q13 -> 4.525811267 | R15: =R12*R13 -> 25.17929998
K16: Ratio | L16: =L13/$R$13 -> 0.3202566683 | M16: =M13/$R$13 -> 0.1797433317 | N16: 0 | O16: 0 | P16: 0.3202566683 | Q16: 0.1797433317
B18: DATA INPUT
I19: VOLTAGE DROPS | K19: En= | L19: Etot Rn R Rtot | M19: En = In Rn | N19: Itot= Etot R Rtot | P19: Voltage Divider | Q19: In= Itot Rtot / Rn | R19: En= Etot Rn / Rtot
B20: R1 | C20: 71.43 | E20: E | K20: - | L20: Entering | P20: Si Prefixes
B21: R2 | C21: 127.27 | E21: I | R | K21: + | L21: Exiting | P21: Power | Q21: Metric | R21: Prefix
B22: R3 | G22: POWER | J22: Work Chart | P22: 12 | Q22: Tera | R22: T | S22: 100000000
B23: R4 | G23: P = | H23: I E | I23: Series | J23: It = I1, I2,.. In.. Rt = 1 / (R1 + R2 + R3..Rn). .Et = E1 + E2 + En | P23: 9 | Q23: Giga | R23: G | S23: 1000000
B24: R5 | C24: 71.43 | G24: P = | H24: I2 R | I24: Parallel | J24: It = I1 + I2 + I3,.. In.. Rt = Et / It , In = Itot(Rtot/Rn) | P24: 6 | Q24: Mega | R24: M | S24: 100000
B25: R6 | C25: 127.27 | E25: P | G25: P = | H25: E 2 | J25: R 1 | K25: R 2 | L25: R 3 | M25: Rn | N25: Total | P25: 3 | Q25: Kilo | R25: K | S25: 1000
B26: E | C26: 24 | E26: I | E | H26: R | I26: E | J26: =B12/N26 -> 0.1797433317 | K26: =C12/N26 -> 0.3202566683 | L26: =D12/N26 -> 0 | M26: =E12/N26 -> 0 | N26: =C26 -> 24 | P26: 2 | Q26: hecto | R26: h | S26: 10
B27: I | C27: 0 | G27: True for ALL Circuits | I27: I | J27: =$N$26*(J28/N28) -> 8.627679919 | K27: =$N$26*(K28/N28) -> 15.37232008 | L27: =$N$26*(L28/N28) -> 0 | M27: =$N$26*(M28/N28) -> 0 | P27: 1 | Q27: decca | R27: da | S27: 1
G28: Pt = P1 + P2 + P3 + Pn | I28: R | J28: =C20 -> 71.43 | K28: =C21 -> 127.27 | L28: =C22 -> 0 | M28: =C23 -> 0 | N28: =SUM(J28:M28) -> 198.7 | P28: 0 | Q28: Unit | R28: plain | S28: 0
I29: P | P29: -1 | Q29: deci | R29: d | S29: 0.1
P30: -2 | Q30: centi | R30: c | S30: 0.01
J31: OHM's Law | P31: -3 | Q31: milli | R31: m | S31: 0.001
P32: -6 | Q32: micro | R32: u | S32: 0.0001
P33: -9 | Q33: pica | R33: n | S33: 1e-06
P34: -12 | Q34: nano | R34: p | S34: 1e-08
